bitfinex/quotes_BTCUSD_20250829
["timestamp","ask_amount","ask_price","bid_price","bid_amount"]
[1756429234849,0.60260288,112470.0,112460.0,0.18305101]
[1756429235232,0.60260288,112470.0,112460.0,0.18101101]
[1756429235800,0.25999047,112470.0,112460.0,0.18101101]
[1756429236049,0.60260288,112470.0,112460.0,0.18101101]
[1756429236975,0.60260288,112470.0,112460.0,0.18305101]
[1756429238370,0.57975878,112470.0,112460.0,0.18305101]
[1756429238572,0.6025954,112470.0,112460.0,0.18305101]
[1756429239665,0.57975597,112470.0,112460.0,0.18305101]
[1756429239861,0.60259406,112470.0,112460.0,0.18305101]
[1756429240530,0.45179406,112470.0,112460.0,0.18305101]
[1756429240735,0.10918804,112470.0,112460.0,0.74677544]
[1756429240955,0.09257426,112470.0,112460.0,0.83507176]
[1756429241170,0.05889517,112470.0,112460.0,0.83507176]
[1756429241935,0.05889517,112470.0,112460.0,0.76471974]
[1756429243385,0.40150758,112470.0,112460.0,0.42210733]
[1756429246123,0.05889517,112470.0,112460.0,0.42210733]
[1756429246327,0.40150758,112470.0,112460.0,0.42210733]
[1756429247250,0.40981194,112470.0,112460.0,0.42210733]
[1756429247529,0.40150758,112470.0,112460.0,0.42210733]
[1756429247713,0.43517212,112470.0,112460.0,0.18101101]
[1756429247915,0.8051561,112470.0,112460.0,0.17784101]
[1756429248123,0.84959876,112470.0,112460.0,0.17784101]
[1756429248324,0.87353639,112470.0,112460.0,0.17784101]
[1756429249468,0.87300981,112470.0,112460.0,0.17784101]
[1756429250122,0.85847938,112470.0,112460.0,0.17784101]
[1756429250328,0.89341249,112470.0,112460.0,0.17784101]
[1756429250871,0.96181249,112470.0,112460.0,0.17784101]
[1756429251493,0.96181249,112470.0,112450.0,0.17784828]
[1756429251703,0.5920918,112470.0,112460.0,0.17784101]
[1756429251903,0.77018337,112470.0,112460.0,0.17784101]
[1756429252106,0.94800887,112470.0,112450.0,0.17784828]
[1756429252680,0.92126887,112470.0,112450.0,0.17784828]
[1756429252907,0.36909212,112460.0,112450.0,0.17784828]
[1756429253134,0.50766278,112460.0,112450.0,0.17784828]
[1756429253675,0.16531366,112460.0,112450.0,0.18274828]
[1756429253878,0.22773734,112460.0,112450.0,0.18274828]
[1756429254083,0.57008646,112460.0,112450.0,0.18274828]
[1756429254286,0.57008646,112460.0,112450.0,0.17784828]
[1756429255357,0.57008646,112460.0,112450.0,0.18077828]
[1756429256976,0.65838278,112460.0,112450.0,0.18077828]
[1756429257998,0.65838278,112460.0,112450.0,0.17784828]
[1756429258434,0.65838278,112460.0,112450.0,0.18077828]
[1756429259909,0.65834278,112460.0,112450.0,0.18077828]
[1756429260516,0.65834278,112460.0,112450.0,0.18274828]
[1756429260517,0.41106196,112460.0,112450.0,0.18274828]
[1756429260721,0.0770376,112460.0,112450.0,0.18274828]
[1756429260932,0.0770376,112460.0,112450.0,0.5250974]
[1756429260933,0.03505294,112460.0,112450.0,0.5250974]
[1756429261104,0.026743,112460.0,112450.0,0.61339372]
[1756429261534,0.026743,112460.0,112450.0,0.63433254]
[1756429261715,0.026743,112460.0,112450.0,0.72262886]
[1756429262679,0.026743,112460.0,112450.0,0.63433254]
[1756429263373,0.03285532,112470.0,112450.0,0.63433254]
[1756429263374,4.773e-05,112470.0,112460.0,0.17784101]
[1756429263598,0.02678273,112470.0,112460.0,0.76205645]
[1756429263828,0.02678273,112470.0,112460.0,0.76402645]
[1756429265118,0.02678273,112470.0,112460.0,0.42167733]
[1756429265334,0.05949396,112470.0,112460.0,0.42167733]
[1756429265536,0.02678273,112470.0,112460.0,0.42167733]
[1756429266253,0.02678273,112470.0,112460.0,0.50997365]
[1756429266696,0.02678273,112470.0,112460.0,0.42167733]
[1756429270889,0.02678273,112470.0,112460.0,0.42163733]
[1756429273863,0.02678273,112470.0,112460.0,0.78492527]
[1756429274334,4.773e-05,112470.0,112460.0,0.78492527]
[1756429275779,4.773e-05,112470.0,112460.0,0.44257615]
[1756429276002,4.773e-05,112470.0,112460.0,0.87322159]
[1756429276217,4.773e-05,112470.0,112460.0,0.38027247]
[1756429276452,4.773e-05,112470.0,112460.0,0.87318159]
[1756429277141,4.773e-05,112470.0,112460.0,0.78488527]
[1756429277591,0.56353994,112500.0,112480.0,0.17780938]
[1756429277847,5.36908312,112490.0,112480.0,0.17780938]
[1756429278129,0.36908312,112490.0,112480.0,0.17780938]
[1756429278368,0.026734,112490.0,112480.0,0.17780938]
[1756429278604,0.86908312,112490.0,112480.0,0.17780938]
[1756429278833,5.12968712,112490.0,112480.0,0.17780938]
[1756429279284,0.36908312,112490.0,112480.0,0.17780938]
[1756429281411,0.36908312,112490.0,112480.0,0.18079938]
[1756429281412,0.40065339,112490.0,112480.0,0.18079938]
[1756429281825,0.40895157,112490.0,112480.0,0.18079938]
[1756429282860,0.40895157,112490.0,112480.0,0.17780938]
[1756429283857,0.40895157,112490.0,112480.0,0.18079938]
[1756429284270,0.40895157,112490.0,112480.0,0.18290938]
[1756429284469,0.21716245,112490.0,112480.0,0.18290938]
[1756429284674,0.55951157,112490.0,112480.0,0.18290938]
[1756429285267,0.21716245,112490.0,112480.0,0.18290938]
[1756429285469,0.05830427,112490.0,112480.0,0.32322167]
[1756429286085,0.026734,112490.0,112480.0,0.32322167]
[1756429286528,0.026734,112490.0,112480.0,0.2712057]
[1756429286889,0.36908312,112490.0,112480.0,0.4217657]
[1756429287090,0.36908312,112490.0,112480.0,0.2712057]
[1756429287353,0.36908312,112490.0,112480.0,0.4218057]
[1756429287556,0.026734,112490.0,112480.0,0.4218057]
[1756429287764,0.026734,112490.0,112480.0,0.2712057]
[1756429287967,0.05889658,112490.0,112480.0,0.4218057]
[1756429288163,0.026734,112490.0,112480.0,0.4218057]
[1756429288358,0.026734,112490.0,112480.0,0.2712057]
[1756429288559,0.026734,112490.0,112480.0,0.4217657]
[1756429289119,0.026734,112490.0,112480.0,0.2712057]
[1756429289348,0.026734,112490.0,112480.0,0.4217657]
[1756429289562,0.36908312,112490.0,112480.0,0.4217657]
[1756429290765,0.40048474,112490.0,112480.0,0.4217657]
[1756429291082,0.40048474,112490.0,112480.0,0.2712057]
[1756429291289,0.59109799,112490.0,112480.0,0.17780938]
[1756429291490,0.25706635,112490.0,112480.0,0.17780938]
[1756429291691,0.59941547,112490.0,112480.0,0.17780938]
[1756429294513,0.55936222,112490.0,112480.0,0.18290938]
[1756429294716,0.55936222,112490.0,112480.0,0.18079938]
[1756429294919,0.2170131,112490.0,112480.0,0.18290938]
[1756429295122,0.55936222,112490.0,112480.0,0.18290938]
[1756429295526,0.40880222,112490.0,112480.0,0.18290938]
[1756429295923,0.40880348,112490.0,112480.0,0.18290938]
[1756429296523,0.06645436,112490.0,112480.0,0.18290938]
[1756429296728,0.40880348,112490.0,112480.0,0.18290938]
[1756429296936,0.06645436,112490.0,112480.0,0.18290938]
[1756429297161,0.05813562,112490.0,112480.0,0.18290938]
[1756429297536,0.066454,112490.0,112480.0,0.18290938]
[1756429297946,0.40880312,112490.0,112480.0,0.18290938]
[1756429298145,0.40880312,112490.0,112480.0,0.33346938]
[1756429298855,0.40880312,112490.0,112480.0,0.33135938]
[1756429299070,0.09231814,112490.0,112480.0,0.33135938]
[1756429299267,0.40880312,112490.0,112480.0,0.33135938]
[1756429299466,0.40880312,112490.0,112480.0,0.33346938]
[1756429300278,0.40880312,112490.0,112480.0,0.33135938]
[1756429300881,0.40880312,112490.0,112480.0,0.17780938]
[1756429301101,0.43421239,112490.0,112470.0,0.60395028]
[1756429301215,0.49290912,112480.0,112470.0,0.18669028]
[1756429301422,0.5266355,112480.0,112470.0,0.17779903]
[1756429301736,0.5700112,112480.0,112470.0,0.17779903]
[1756429301937,0.57001066,112480.0,112470.0,0.17779903]
[1756429302150,0.91235978,112480.0,112460.0,0.18673306]
[1756429302353,0.31595786,112480.0,112470.0,0.17782519]
[1756429302552,0.16539786,112480.0,112470.0,0.17782519]
[1756429302760,0.069628,112480.0,112470.0,0.17782519]
[1756429303094,0.096368,112480.0,112470.0,0.17782519]
[1756429303432,0.36908912,112480.0,112470.0,0.17782519]
[1756429303634,0.51964912,112480.0,112470.0,0.17782519]
[1756429305848,1.03980763,112480.0,112460.0,0.18673306]
[1756429306055,0.68469824,112470.0,112460.0,0.18673306]
[1756429306632,0.71143824,112470.0,112460.0,0.18673306]
[1756429306837,0.71143824,112470.0,112460.0,0.18972306]
[1756429307083,0.86199824,112470.0,112460.0,0.18972306]
[1756429308125,0.51964912,112470.0,112460.0,0.18972306]
[1756429308786,0.36908912,112470.0,112460.0,0.18972306]
[1756429308985,0.51964912,112470.0,112460.0,0.18972306]
[1756429310432,0.51964912,112470.0,112460.0,0.19175306]
[1756429311277,0.59269818,112470.0,112460.0,0.18972306]
[1756429311478,0.51964912,112470.0,112460.0,0.18972306]
[1756429312137,0.86199824,112470.0,112450.0,0.18674112]
[1756429312326,0.86199824,112470.0,112450.0,0.34037112]
[1756429312327,0.34234912,112460.0,112450.0,0.34037112]
[1756429312753,0.36908912,112460.0,112450.0,0.34240112]
[1756429313606,0.36908912,112460.0,112450.0,0.34244885]
[1756429314703,0.02674,112460.0,112450.0,0.34244885]
[1756429315089,0.36908912,112460.0,112450.0,0.34244885]
[1756429319966,0.02674,112460.0,112450.0,0.34244885]
[1756429320164,0.36908912,112460.0,112450.0,0.40221036]
[1756429321066,0.02674,112460.0,112450.0,0.40221036]
[1756429321270,0.77064544,112490.0,112480.0,0.17780938]
[1756429321538,0.05022031,112490.0,112480.0,0.33346938]
[1756429321751,0.07695431,112490.0,112480.0,0.33346938]
[1756429321878,0.41930546,112490.0,112480.0,0.33346938]
[1756429322293,0.39397044,112490.0,112480.0,0.33346938]
[1756429323088,0.026734,112490.0,112480.0,0.33346938]
[1756429324976,0.37372545,112500.0,112490.0,0.17779358]
[1756429325179,0.42396032,112500.0,112490.0,0.18289358]
[1756429325387,0.45069332,112500.0,112490.0,0.18289358]
[1756429325908,0.45069332,112500.0,112490.0,0.33345358]
[1756429326153,0.88133876,112500.0,112490.0,0.15056]
[1756429326365,0.88133876,112500.0,112490.0,0.17779358]
[1756429326791,0.88133876,112500.0,112480.0,0.32836938]
[1756429326967,0.49290912,112490.0,112480.0,0.17780938]
[1756429327836,1.09113151,112490.0,112460.0,0.18978724]
[1756429328048,0.34234912,112470.0,112460.0,0.18978724]
[1756429328213,0.34234912,112470.0,112460.0,0.18671724]
[1756429328214,0.68469824,112470.0,112460.0,0.18671724]
[1756429328422,0.68469824,112470.0,112460.0,0.33727724]
[1756429328637,0.72803684,112470.0,112460.0,0.33727724]
[1756429329377,0.38568772,112470.0,112460.0,0.33727724]
[1756429329584,0.36908912,112470.0,112460.0,0.34237724]
[1756429329987,0.36908912,112470.0,112460.0,0.34437724]
[1756429330195,0.38569023,112470.0,112460.0,0.34437724]
[1756429330398,0.38569023,112470.0,112460.0,0.34237724]
[1756429330777,0.38569023,112470.0,112460.0,0.34337724]
[1756429331177,0.38569377,112470.0,112460.0,0.34337724]
[1756429333735,0.78996878,112470.0,112460.0,0.001]
[1756429333946,0.78996878,112470.0,112460.0,0.17884101]
[1756429334148,0.93951825,112470.0,112460.0,0.001]
[1756429334555,0.76169306,112470.0,112460.0,0.001]
[1756429335153,0.74256866,112470.0,112460.0,0.17884101]
[1756429335534,0.74256866,112470.0,112460.0,0.17784101]
[1756429337022,0.79382086,112470.0,112460.0,0.17784101]
[1756429337668,1.05994237,112470.0,112450.0,0.18981112]
[1756429337874,0.34234912,112460.0,112450.0,0.34041885]
[1756429338113,0.4627781,112470.0,112460.0,0.17784101]
[1756429338294,0.51300717,112470.0,112460.0,0.17784101]
[1756429338757,0.53974917,112470.0,112460.0,0.17784101]
[1756429338935,0.62927804,112470.0,112460.0,0.17784101]
[1756429339141,0.62927804,112470.0,112450.0,0.18985885]
[1756429339352,0.49290912,112460.0,112450.0,0.18985885]
[1756429339549,0.50950259,112460.0,112450.0,0.19187885]
[1756429340539,0.7140856,112460.0,112450.0,4.773e-05]
[1756429340742,1.20575803,112460.0,112450.0,4.773e-05]
[1756429341101,1.23124352,112460.0,112450.0,4.773e-05]
[1756429341517,1.21464514,112460.0,112450.0,4.773e-05]
[1756429341718,6.33417868,112460.0,112450.0,0.00104773]
[1756429341919,6.35807811,112460.0,112450.0,0.00104773]
[1756429342166,6.44637443,112460.0,112450.0,0.00104773]
[1756429342371,6.44737443,112460.0,112450.0,0.00104773]
[1756429343123,6.51577443,112460.0,112450.0,0.00104773]
[1756429343803,6.4883671,112460.0,112450.0,0.00104773]
[1756429345766,6.51577443,112460.0,112450.0,0.00104773]
[1756429346953,6.55631741,112460.0,112450.0,0.00104773]
[1756429347931,6.51577443,112460.0,112450.0,0.00104773]
[1756429348279,6.52433904,112460.0,112450.0,0.00104773]
[1756429348938,5.69610254,112460.0,112450.0,0.00104773]
[1756429349161,6.03905166,112460.0,112450.0,0.00407773]
[1756429349287,5.86399223,112460.0,112450.0,0.00609773]
[1756429349493,5.68615122,112460.0,112450.0,0.00407773]
[1756429349696,6.03917166,112460.0,112450.0,0.00407773]
[1756429349945,5.86399223,112460.0,112450.0,0.00407773]
[1756429350147,6.01523223,112460.0,112450.0,0.00407773]
[1756429350529,6.01523223,112460.0,112450.0,0.18395455]
[1756429350530,5.5978549,112460.0,112450.0,0.18395455]
[1756429350737,5.7490949,112460.0,112450.0,0.18395455]
[1756429351018,5.92693591,112460.0,112450.0,0.00609773]
[1756429351214,6.01523223,112460.0,112450.0,0.00609773]
[1756429352037,6.00901457,112460.0,112450.0,0.00609773]
[1756429352239,5.92688022,112460.0,112450.0,0.00609773]
[1756429353423,5.74903921,112460.0,112450.0,0.18395455]
[1756429353571,5.92688022,112460.0,112450.0,0.00609773]
[1756429353778,5.33829009,112460.0,112450.0,0.00609773]
[1756429353977,0.76879521,112460.0,112450.0,0.18395455]
[1756429354185,0.53414633,112460.0,112450.0,0.22013722]
[1756429354390,0.56089224,112460.0,112450.0,0.18395455]
[1756429355204,0.55989224,112460.0,112450.0,0.18295455]
[1756429355408,0.52822272,112460.0,112450.0,0.18295455]
[1756429356356,0.53443518,112460.0,112450.0,0.18295455]
[1756429358319,0.19208606,112460.0,112450.0,0.18295455]
[1756429358527,0.53443518,112460.0,112450.0,0.18295455]
[1756429359824,0.19208606,112460.0,112450.0,0.18295455]
[1756429360022,0.53443518,112460.0,112450.0,0.18295455]
[1756429361006,0.53419518,112460.0,112450.0,0.18295455]
[1756429361191,0.19184606,112460.0,112450.0,0.18295455]
[1756429361547,0.53419518,112460.0,112450.0,0.18295455]
[1756429361967,0.38195518,112460.0,112450.0,0.18295455]
[1756429362268,0.53419518,112460.0,112450.0,0.18295455]
[1756429362478,0.38195518,112460.0,112450.0,0.18295455]
[1756429362670,0.5176223,112460.0,112450.0,0.18295455]
[1756429362887,0.53422414,112460.0,112450.0,0.18295455]
[1756429363033,0.53418414,112460.0,112450.0,0.18295455]
[1756429363239,0.87418414,112460.0,112450.0,0.18295455]
[1756429366095,0.89330405,112460.0,112450.0,0.18295455]
[1756429368474,1.15944138,112460.0,112450.0,0.00307773]
[1756429368800,1.15944138,112460.0,112450.0,4.773e-05]
[1756429368982,5.85849206,112460.0,112450.0,4.773e-05]
[1756429369146,5.88236604,112460.0,112450.0,4.773e-05]
[1756429369353,5.91020065,112460.0,112450.0,4.773e-05]
[1756429370636,5.91120065,112460.0,112450.0,4.773e-05]
[1756429370925,5.99949697,112460.0,112450.0,4.773e-05]
[1756429372670,5.99093236,112460.0,112450.0,4.773e-05]
[1756429373084,5.97641417,112460.0,112450.0,4.773e-05]
[1756429373288,5.96312172,112460.0,112450.0,4.773e-05]
[1756429373928,5.9631219,112460.0,112450.0,4.773e-05]
[1756429374152,5.8109619,112460.0,112450.0,4.773e-05]
[1756429374351,5.69666457,112460.0,112450.0,0.18306455]
[1756429374565,5.87450558,112460.0,112450.0,0.00316773]
[1756429375115,5.6389584,112460.0,112450.0,0.00316773]
[1756429375320,5.8506316,112460.0,112450.0,0.00316773]
[1756429377126,5.8505916,112460.0,112450.0,0.00316773]
[1756429377348,5.8505916,112460.0,112450.0,0.00520773]
[1756429378079,5.8505916,112460.0,112450.0,0.00316773]
[1756429378486,5.5965388,112460.0,112450.0,0.00316773]
[1756429378694,5.93888792,112460.0,112450.0,0.00316773]
[1756429378894,5.93888792,112460.0,112450.0,4.773e-05]
[1756429380229,5.93889807,112460.0,112450.0,4.773e-05]
[1756429380639,6.055029,112460.0,112450.0,4.773e-05]
[1756429380856,6.44865943,112460.0,112450.0,4.773e-05]
[1756429382521,6.44865993,112460.0,112450.0,4.773e-05]
[1756429383150,6.44865655,112460.0,112450.0,4.773e-05]
[1756429383360,6.44865703,112460.0,112450.0,4.773e-05]
[1756429384192,6.4625768,112460.0,112450.0,4.773e-05]
[1756429384395,6.50231453,112460.0,112450.0,4.773e-05]
[1756429385021,6.16231453,112460.0,112450.0,4.773e-05]
[1756429385421,6.19124528,112460.0,112450.0,4.773e-05]
[1756429385654,6.21444699,112460.0,112450.0,4.773e-05]
[1756429385904,6.2061416,112460.0,112450.0,4.773e-05]
[1756429386927,6.5451416,112460.0,112450.0,4.773e-05]
[1756429387108,6.5471416,112460.0,112450.0,4.773e-05]
[1756429391813,6.51973427,112460.0,112450.0,4.773e-05]
[1756429392547,6.36793427,112460.0,112450.0,4.773e-05]
[1756429392752,6.49613256,112460.0,112450.0,4.773e-05]
[1756429392956,6.49613256,112460.0,112450.0,0.00316773]
[1756429392957,6.50435574,112460.0,112450.0,0.00316773]
[1756429393161,6.50435574,112460.0,112450.0,0.00520773]
[1756429393162,5.68258775,112460.0,112450.0,0.00520773]
[1756429393357,6.36728599,112460.0,112450.0,4.773e-05]
[1756429393783,6.38710961,112460.0,112450.0,0.00316773]
[1756429393949,6.38710961,112460.0,112450.0,0.00520773]
[1756429394152,6.38710961,112460.0,112450.0,0.00316773]
[1756429394414,6.47540593,112460.0,112450.0,0.00316773]
[1756429395014,6.53121579,112460.0,112450.0,0.00316773]
[1756429396518,6.53121579,112460.0,112450.0,0.00520773]
[1756429396982,6.53121579,112460.0,112450.0,0.00316773]
[1756429398198,6.51729602,112460.0,112450.0,4.773e-05]
[1756429398346,6.54470335,112460.0,112450.0,4.773e-05]
[1756429398548,6.55326796,112460.0,112450.0,4.773e-05]
[1756429399646,6.57420678,112460.0,112450.0,4.773e-05]
[1756429399873,6.53405818,112460.0,112450.0,4.773e-05]
[1756429400920,6.58405818,112460.0,112450.0,4.773e-05]
[1756429401556,6.59797996,112460.0,112450.0,4.773e-05]
[1756429402378,6.54037996,112460.0,112450.0,4.773e-05]
[1756429402516,6.69177996,112460.0,112450.0,4.773e-05]
[1756429402715,6.64398109,112460.0,112450.0,4.773e-05]
[1756429403116,6.55018109,112460.0,112450.0,4.773e-05]
[1756429403317,6.5336157,112460.0,112450.0,4.773e-05]
[1756429403520,6.55018561,112460.0,112450.0,4.773e-05]
[1756429403720,6.55014561,112460.0,112450.0,4.773e-05]
[1756429404102,6.39878552,112460.0,112450.0,4.773e-05]
[1756429404232,6.55014552,112460.0,112450.0,4.773e-05]
[1756429405515,6.60014552,112460.0,112450.0,1e-08]
[1756429405685,6.60014552,112460.0,112420.0,0.00297]
[1756429405686,0.51788846,112430.0,112420.0,0.00297]
[1756429405897,5.87637415,112430.0,112420.0,0.00297]
[1756429406097,6.02769415,112430.0,112420.0,0.00495]
[1756429406542,6.05444915,112430.0,112420.0,0.00495]
[1756429406903,6.05444915,112430.0,112420.0,0.00595]
[1756429407698,6.08185648,112430.0,112420.0,0.00495]
[1756429407905,6.12147658,112430.0,112420.0,0.00495]
[1756429408151,6.12347658,112430.0,112420.0,0.00495]
[1756429408312,6.15521356,112430.0,112420.0,0.00495]
[1756429409360,6.18104817,112430.0,112420.0,0.00495]
[1756429409661,6.18304817,112430.0,112420.0,0.00495]
[1756429410050,6.15918544,112430.0,112420.0,0.00495]
[1756429410270,6.50153456,112430.0,112420.0,0.00495]
[1756429410585,6.15918544,112430.0,112420.0,0.00495]
[1756429411759,6.00794544,112430.0,112420.0,0.00495]
[1756429412332,6.15910544,112430.0,112420.0,0.00495]
[1756429413884,6.1363236,112430.0,112420.0,0.00495]
[1756429414138,6.15913839,112430.0,112420.0,0.00495]
[1756429415583,6.20686386,112430.0,112420.0,0.00495]
[1756429415736,6.55777759,112430.0,112420.0,0.00495]
[1756429415933,0.51790428,112420.0,112410.0,0.00301774]
[1756429416155,1.6592745,112420.0,112410.0,0.00301774]
[1756429416360,1.6592745,112420.0,112410.0,0.00499774]
[1756429416839,1.6860305,112420.0,112410.0,0.00499774]
[1756429417042,1.5349905,112420.0,112410.0,0.00499774]
[1756429417386,1.6869905,112420.0,112410.0,0.00499774]
[1756429417595,1.6952855,112420.0,112410.0,0.00499774]
[1756429417770,1.6952855,112420.0,112410.0,0.00301774]
[1756429419061,1.7367875,112420.0,112410.0,4.774e-05]
[1756429419268,1.7111451,112420.0,112410.0,4.774e-05]
[1756429419705,1.66341963,112420.0,112410.0,4.774e-05]
[1756429420351,1.68435845,112420.0,112410.0,4.774e-05]
[1756429421002,1.67606471,112420.0,112410.0,4.774e-05]
[1756429421167,1.68435361,112420.0,112410.0,4.774e-05]
[1756429421378,2.02670273,112420.0,112410.0,4.774e-05]
[1756429421640,1.74808544,112420.0,112410.0,4.774e-05]
[1756429421801,1.76201122,112420.0,112410.0,4.774e-05]
[1756429422001,1.76201122,112420.0,112390.0,0.00297]
[1756429422002,0.17793594,112400.0,112390.0,0.00297]
[1756429422237,6.04382458,112400.0,112390.0,0.00301767]
[1756429422432,6.09906652,112400.0,112390.0,0.00499767]
[1756429422817,6.12582652,112400.0,112390.0,0.00499767]
[1756429423183,6.1397525,112400.0,112390.0,0.00499767]
[1756429423402,5.9886325,112400.0,112390.0,0.00699767]
[1756429423808,6.11230517,112400.0,112390.0,0.00699767]
[1756429424282,6.11230517,112400.0,112390.0,0.00499767]
[1756429424485,6.1122715,112400.0,112390.0,0.00499767]
[1756429424621,6.11226315,112400.0,112390.0,0.00499767]
[1756429424964,5.96118315,112400.0,112390.0,0.00499767]
[1756429425262,6.11226174,112400.0,112390.0,0.00499767]
[1756429425467,6.13966907,112400.0,112390.0,0.00499767]
[1756429426278,6.14066907,112400.0,112390.0,0.00499767]
[1756429426466,6.18781224,112400.0,112390.0,0.00499767]
[1756429426832,6.18881224,112400.0,112390.0,0.00499767]
[1756429430930,6.17488626,112400.0,112390.0,0.00499767]
[1756429434925,6.16867206,112400.0,112390.0,0.00499767]
[1756429435131,6.17487378,112400.0,112390.0,0.00499767]
[1756429436289,6.17483044,112400.0,112390.0,0.00499767]
[1756429437270,6.22256905,112400.0,112390.0,0.00499767]
[1756429437471,6.17483044,112400.0,112390.0,0.00499767]
[1756429438106,6.22256905,112400.0,112390.0,4.767e-05]
[1756429438306,6.19074331,112400.0,112390.0,4.767e-05]
[1756429438533,6.18246441,112400.0,112390.0,4.767e-05]
[1756429438908,6.18226441,112400.0,112390.0,4.767e-05]
[1756429441221,6.18226394,112400.0,112390.0,4.767e-05]
[1756429441616,6.52461306,112400.0,112390.0,4.767e-05]
[1756429442048,6.18226394,112400.0,112390.0,4.767e-05]
[1756429442250,6.03138394,112400.0,112390.0,4.767e-05]
[1756429442371,6.18226394,112400.0,112390.0,4.767e-05]
[1756429443044,6.14268538,112400.0,112390.0,4.767e-05]
[1756429443255,6.3341545,112400.0,112390.0,4.767e-05]
[1756429443472,6.14268538,112400.0,112390.0,4.767e-05]
[1756429444430,5.99180538,112400.0,112390.0,4.767e-05]
[1756429444618,5.9918205,112400.0,112390.0,4.767e-05]
[1756429444827,6.1427005,112400.0,112390.0,4.767e-05]
[1756429445286,6.09496189,112400.0,112390.0,4.767e-05]
[1756429445488,5.9162471,112400.0,112390.0,4.767e-05]
[1756429445716,5.69737065,112400.0,112390.0,0.00327767]
[1756429445909,6.03971977,112400.0,112390.0,0.00327767]
[1756429446516,5.69737065,112400.0,112390.0,0.00327767]
[1756429446655,6.03971977,112400.0,112390.0,0.00327767]
[1756429447559,6.03971977,112400.0,112390.0,0.00523767]
[1756429447757,6.03971977,112400.0,112390.0,0.00327767]
[1756429447957,6.0671271,112400.0,112390.0,0.00327767]
[1756429448321,6.15869354,112400.0,112390.0,0.00327767]
[1756429448454,6.15869354,112400.0,112390.0,4.767e-05]
[1756429449492,6.50104266,112400.0,112390.0,4.767e-05]
[1756429450292,1.20265001,112390.0,112380.0,0.05007575]
[1756429450491,6.38036223,112390.0,112380.0,0.05055472]
[1756429450839,6.38036223,112390.0,112380.0,0.05251472]
[1756429450985,6.18338656,112390.0,112380.0,0.05251472]
[1756429451195,6.25711567,112390.0,112380.0,0.05251472]
[1756429451432,6.25711567,112390.0,112380.0,0.05055472]
[1756429451613,6.33912161,112390.0,112380.0,0.04732472]
[1756429452430,6.38689918,112390.0,112380.0,0.04732472]
[1756429452640,6.44334427,112390.0,112380.0,0.04732472]
[1756429452861,1.33119572,112380.0,112370.0,0.0004]
[1756429453067,6.71287405,112380.0,112370.0,0.0004]
[1756429453316,6.73655089,112380.0,112370.0,0.0004]
[1756429453516,6.76958266,112380.0,112370.0,0.0004]
[1756429453635,6.97786343,112380.0,112370.0,1e-08]
[1756429453838,0.61798344,112370.0,112360.0,0.0004]
[1756429454041,6.77795478,112370.0,112360.0,0.0004]
[1756429454477,6.78152478,112370.0,112360.0,0.0004]
[1756429454679,6.88375556,112370.0,112360.0,0.0004]
[1756429454886,6.8837175,112370.0,112360.0,0.0004]
[1756429455084,1.27887828,112360.0,112350.0,0.0002]
[1756429455287,6.32079855,112360.0,112350.0,0.0002]
[1756429455485,6.32078366,112360.0,112350.0,0.0002]
[1756429455850,6.35380984,112360.0,112350.0,0.0002]
[1756429456059,6.35376984,112360.0,112350.0,0.0002]
[1756429456271,6.35376984,112360.0,112350.0,0.00343]
[1756429456483,6.4013327,112360.0,112350.0,0.00343]
[1756429456693,6.37396537,112360.0,112350.0,0.00539]
[1756429457080,6.4013727,112360.0,112350.0,0.00539]
[1756429457228,6.4013727,112360.0,112350.0,0.0002]
[1756429458437,6.4033727,112360.0,112350.0,0.0002]
[1756429458969,6.43027777,112360.0,112350.0,0.0002]
[1756429459813,6.43506677,112360.0,112350.0,0.0002]
[1756429460229,6.47611097,112360.0,112350.0,0.0002]
[1756429461045,6.42854811,112360.0,112350.0,0.0002]
[1756429462114,6.40760929,112360.0,112350.0,0.0002]
[1756429462318,6.42854811,112360.0,112350.0,0.0002]
[1756429462522,6.43711272,112360.0,112350.0,0.0002]
[1756429462695,6.5007041,112360.0,112350.0,0.0002]
[1756429463495,6.3495041,112360.0,112350.0,0.00549]
[1756429463704,5.92011943,112360.0,112350.0,0.00549]
[1756429464093,6.00760805,112360.0,112350.0,0.00549]
[1756429464302,6.42527572,112360.0,112350.0,0.00549]
[1756429464501,6.46879049,112360.0,112350.0,0.0002]
[1756429464922,6.46679049,112360.0,112350.0,0.0002]
[1756429465092,6.45854728,112360.0,112350.0,0.0002]
[1756429465297,1.23054798,112350.0,112340.0,0.00479925]
[1756429465458,6.32808477,112350.0,112340.0,0.00479925]
[1756429465666,6.3554921,112350.0,112340.0,0.00684925]
[1756429466624,5.67020053,112350.0,112340.0,0.00699222]
[1756429466763,6.32706416,112350.0,112340.0,0.00699222]
[1756429467384,6.33457974,112350.0,112340.0,0.00699222]
[1756429467820,6.31083197,112350.0,112340.0,0.00699222]
[1756429469970,6.31083197,112350.0,112340.0,0.00170222]
[1756429469971,6.76420721,112350.0,112340.0,0.00170222]
[1756429470176,6.40668953,112350.0,112340.0,0.00170222]
[1756429470419,6.27642835,112350.0,112340.0,0.00170222]
[1756429470613,6.42774835,112350.0,112340.0,0.00170222]
[1756429471284,6.45142519,112350.0,112340.0,0.00170222]
[1756429471725,6.45242519,112350.0,112340.0,0.00170222]
[1756429472360,6.45242799,112350.0,112340.0,0.00170222]
[1756429472774,6.45242799,112350.0,112340.0,0.00494222]
[1756429474392,6.30110799,112350.0,112340.0,0.00494222]
[1756429474595,6.45230799,112350.0,112340.0,0.00494222]
[1756429475661,6.45232244,112350.0,112340.0,0.00170222]
[1756429476778,6.45228244,112350.0,112340.0,0.00699222]
[1756429477203,6.4286056,112350.0,112340.0,0.00699222]
[1756429477403,0.51803097,112340.0,112330.0,0.0004]
[1756429477606,6.08678334,112340.0,112330.0,0.0004]
[1756429477914,5.99848702,112340.0,112330.0,0.00245]
[1756429478061,5.99742941,112340.0,112330.0,0.00245]
[1756429478257,5.77782941,112340.0,112330.0,0.00245]
[1756429479392,5.77783898,112340.0,112330.0,0.00245]
[1756429479564,5.77783898,112340.0,112330.0,0.00569]
[1756429480132,5.84143036,112340.0,112330.0,0.00569]
[1756429480574,5.77783898,112340.0,112330.0,0.00569]
[1756429481145,0.51804682,112330.0,112320.0,0.0002]
[1756429481370,5.79876315,112330.0,112320.0,0.0002]
[1756429481584,5.45641403,112330.0,112320.0,0.18031267]
[1756429481947,5.82553915,112330.0,112320.0,0.00225]
[1756429482182,5.77785383,112330.0,112320.0,0.00225]
[1756429482601,5.77792307,112330.0,112320.0,0.00225]
[1756429483409,5.77792307,112330.0,112320.0,0.00675]
[1756429484154,5.77792307,112330.0,112320.0,0.00425]
[1756429484507,5.86621939,112330.0,112320.0,0.00425]
[1756429484704,5.92981077,112330.0,112320.0,0.00425]
[1756429485307,5.86621939,112330.0,112320.0,0.00425]
[1756429485942,5.86834939,112330.0,112320.0,0.00425]
[1756429486104,5.87644976,112330.0,112320.0,0.0022]
[1756429486307,5.89924453,112330.0,112320.0,0.0022]
[1756429486954,6.05040453,112330.0,112320.0,0.0022]
[1756429487336,6.11399591,112330.0,112320.0,0.0022]
[1756429488076,6.45634503,112330.0,112320.0,0.0022]